Workbook

Sheet 1. Forside
A1: Vestforsyning Vand A/S
D8: Bilag A
D13: Indholdsfortegnelse
C16: Fane nr. 2 | D16: Samlet prisloft
C17: Fane nr. 3 | D17: Driftsomkostninger
C18: Fane nr. 4 | D18: Historiske investeringer
C19: Fane nr. 5 | D19: Gennemførte investeringer
C20: Fane nr. 6 | D20: Korrektion investeringer
C21: Fane nr. 7 | D21: Planlagte investeringer
C22: Fane nr. 8 | D22: 1:1 omkostninger
C23: Fane nr. 9 | D23: Miljø- og servicemål
C24: Fane nr. 10 | D24: Nettofinansielle poster
C25: Fane nr. 11 | D25: Over- eller underdækning
C26: Fane nr. 12 | D26: Kontrol med indtægtsrammen og oversigt over ekstraordinære effektiviseringsgevinster

Sheet 2. Samlet prisloft
A1: ='1. Forside'!A1 -> Vestforsyning Vand A/S
B4: Fane 2. Samlet prisloft for 2015
B6: Driftsomkostninger
B7: Driftsomkostninger i prisloftet for 2014 | C7: ='3. Driftsomkostninger'!C20 -> 15030771.63 | D7: kr.
B8: Bortfald af væsentlige omkostninger | C8: =-'3. Driftsomkostninger'!C16 -> 0 | D8: kr.
B9: Korrektion for prisudviklingen 2014-2015 | C9: ='3. Driftsomkostninger'!C22 -> 12024.6173 | D9: kr.
B10: Forhøjelse til effektivt niveau iht. benchmarkingen | C10: ='3. Driftsomkostninger'!C28 -> 0 | D10: kr.
B11: Korrektion for generelt effektiviseringskrav | C11: =-'3. Driftsomkostninger'!C34 -> -66135.39517 | D11: kr.
B12: Korrektion for individuelt effektiviseringskrav | C12: =-'3. Driftsomkostninger'!C43 -> 0 | D12: kr.
B13: Driftsomkostninger i alt | C13: =SUM(C7:C12) -> 14976660.85 | D13: kr. | E13: =C13 -> 14976660.85 | F13: kr.
B14: Investeringer
B15: Tillæg for historiske investeringer | C15: ='4. Historiske investeringer'!C9 -> 20292534.38 | D15: kr.
B16: Tillæg for gennemførte investeringer i 2011-2013 | C16: ='5. Gennemførte investeringer'!F33 -> 5026560.658 | D16: kr.
B17: Korrektion af tillæg for planlagte investeringer vedrørende 2013 | C17: ='6. Korrektion investeringer'!C10 -> 345954.48 | D17: kr.
B18: Tillæg for planlagte investeringer i 2014 og 2015 | C18: ='7. Planlagte investeringer'!F24 -> 911260 | D18: kr.
B19: Investeringstillæg i alt | C19: =SUM(C15:C18) -> 26576309.52 | D19: kr. | E19: =C19 -> 26576309.52 | F19: kr.
B20: Øvrige omkostninger mv.
B21: Tillæg for 1:1 omkostninger i 2015 | C21: ='8. 1-1 omkostninger'!C9 -> 97000 | D21: kr.
B22: Tillæg for afgift for ledningsført vand i 2015 | C22: ='8. 1-1 omkostninger'!C14 -> 22068000 | D22: kr.
B23: Tillæg vedr. revisorerklæringer og DANVA/FVD-kontingent | C23: ='8. 1-1 omkostninger'!C20 -> 179183 | D23: kr.
B24: Korrektion ift. faktiske 1:1 omkostninger i 2013 | C24: ='8. 1-1 omkostninger'!C26 -> -383794 | D24: kr.
B25: Tillæg for driftsomkostninger til miljø- og servicemål i 2015 | C25: ='9. Miljø- og servicemål'!C9 -> 683000 | D25: kr.
B26: Korrektion ift. faktiske driftsomkostninger til miljø- og servicemål i 2013 | C26: ='9. Miljø- og servicemål'!C16 -> 69296 | D26: kr.
B27: Tillæg/fradrag for nettofinansielle poster i 2015 | C27: ='10. Nettofinansielle poster'!C9 -> 3426000 | D27: kr.
B28: Korrektion ift. faktiske nettofinansielle poster i 2013 | C28: ='10. Nettofinansielle poster'!C16 -> -5777987 | D28: kr.
B29: Øvrige omkostninger mv. i alt | C29: =SUM(C21:C28) -> 20360698 | D29: kr. | E29: =C29 -> 20360698 | F29: kr.
B30: Historisk over- eller underdækning
B31: Tillæg/fradrag for over- eller underdækning til og med 2010 | C31: ='11. Over- eller underdækning'!C11 -> 222082.4974 | D31: kr. | E31: =C31 -> 222082.4974 | F31: kr.
B32: Korrektion i forhold til tidligere indtægtsramme
B33: Korrektion for overholdelse af indtægtsramme i prisloft 2013 | C33: ='12. Kontrol med indtægtsrammen'!E27 -> -393.9837973 | D33: kr. | E33: =C33 -> -393.9837973 | F33: kr.
B34: Samlet prisloft
B35: Indtægtsramme i 2015 | E35: =SUM(E13:E33) -> 62135356.89 | F35: kr.
B36: Debiteret vandmængde i 2013 | E36: 3564054 | F36: m3
B37: Prisloft 2015 | E37: =E35/E36 -> 17.43389884 | F37: kr./m3
B38: Prisloft 2015 ekskl. afgift for ledningsført vand | E38: =(E35-C22)/E36 -> 11.24207346 | F38: kr./m3

Sheet 3. Driftsomkostninger
A1: ='1. Forside'!A1 -> Vestforsyning Vand A/S
B4: Fane 3. Driftsomkostninger
B6: Driftsomkostningerne i prisloftet for 2014
B7: Korrigerede driftsomkostninger i prisloftet for 2013 (DOiPL 2013) | C7: 14808642 | D7: kr.
B8: Prisfremskrivning 1,5 pct. | C8: =0.015*SUM(C7:C7) -> 222129.63 | D8: kr.
B9: Generelt effektiviseringskrav (0 pct.) | C9: 0 | D9: kr.
B10: Individuelt effektiviseringskrav | C10: 0 | D10: kr.
B11: Driftsomkostningerne i prisloftet for 2014 (DOiPL 2014) | C11: =SUM(C7:C10) -> 15030771.63 | D11: kr.
B14: Korrektion for forventet bortfald af væsentlige omkostninger
B15: Selskabets indberettede bortfald af væsentlige omkostninger inden 2015 | C15: 0 | D15: kr.
B16: Korrektion for forventet bortfald | C16: =SUM(C15:C15) -> 0 | D16: kr.
B19: Korrektion for prisudviklingen fra 2014-2015
B20: Driftsomkostningerne i prisloftet for 2014 | C20: =C11-C16 -> 15030771.63 | D20: kr.
B21: Prisudvikling 2014 - 2015 | C21: 0.08 | D21: pct.
B22: Korrektion for prisudvikling | C22: =C20*(C21/100) -> 12024.6173 | D22: kr.
B25: Eventuel forhøjelse til effektivt niveau iht. benchmarkingen
B26: Selskabets effektive driftsomkostninger iht. benchmarkingen | C26: 14954115 | D26: kr.
B27: Selskabets pristalskorrigerede driftsomkostninger i 2015-niveau | C27: =C20+C22 -> 15042796.25 | D27: kr.
B28: Eventuel forhøjelse til effektivt niveau | C28: =IF(C27>C26,0,C26-C27) -> 0 | D28: kr.
B31: Korrektion for generelt effektiviseringskrav
B32: Driftsomkostningerne i prisloftet for 2014 | C32: =C20 -> 15030771.63 | D32: kr.
B33: Generelt effektiviseringskrav | C33: 0.44 | D33: pct.
B34: Endeligt generelt effektiviseringskrav | C34: =C32*(C33/100) -> 66135.39517 | D34: kr.
B37: Korrektion for individuelt effektiviseringskrav
B38: Rå effektiviseringspotentiale | C38: 84172 | D38: kr.
B39: Effektiviseringspotentiale efter eventuel korrektion for særlige forhold | C39: 76657 | D39: kr.
B40: Effektiviseringspotentiale efter forsigtighedshensyn | C40: 0 | D40: kr.
B41: Effektiviseringspotentiale efter eventuel korrektion for sammensætning af signifikante costdrivere | C41: 0 | D41: kr.
B42: Umiddelbart effektiviseringskrav | C42: =C41/4 -> 0 | D42: kr.
B43: Endeligt individuelt effektiviseringskrav | C43: =IF(C42>0.05*C20,0.05*C20,IF(C42<0.01*C20,0,C42)) -> 0 | D43: kr.

Sheet 4. Historiske investeringer
A1: ='3. Driftsomkostninger'!A1 -> Vestforsyning Vand A/S
B4: Fane 4. Historiske investeringer
B6: Tillæg for historiske investeringer
B7: Værdi af selskabets materielle anlægsaktiver pr. 1. januar 2010 | C7: 762310897.3 | D7: kr.
B8: Den årlige standardafskrivning på de materielle anlægsaktiver iht. POLKA | C8: 20292534.38 | D8: kr.
B9: Tillæg i alt i 2015 | C9: =C8 -> 20292534.38 | D9: kr.

Sheet 5. Gennemførte investeringer
A1: ='4. Historiske investeringer'!A1 -> Vestforsyning Vand A/S
B4: Fane 5. Gennemførte investeringer i 2010 - 2013
B6: Tillæg for gennemførte investeringer i 2013
B7: Beskrivelse af investeringen | C7: Årstal | D7: Std. levetid (år) | E7: Anskaffelses-pris (kr.) | F7: Afskrivning
B8: Elanlæg - vandværk | C8: 2013 | D8: 25 | E8: 196215 | F8: =E8/D8 -> 7848.6 | G8: kr.
B9: Etageareal vandbehandlingsbygning | C9: 2013 | D9: 75 | E9: 80615 | F9: 1074.866667 | G9: kr.
B10: SRO-anlæg, vandværk | C10: 2013 | D10: 10 | E10: 331588 | F10: 33158.8 | G10: kr.
B11: Udpumpningsanlæg, rentvandspumper på vandværk | C11: 2013 | D11: 25 | E11: 439582 | F11: 17583.28 | G11: kr.
B12: Ø 250 mm < Ledningsnet = Ø 500mm | C12: 2013 | D12: 75 | E12: 473044 | F12: 6307.253333 | G12: kr.
B13: Ø110 mm < Ledningsnet = Ø 250 mm | C13: 2013 | D13: 75 | E13: 1607750 | F13: =E13/D13 -> 21436.66667 | G13: kr.
B14: Pumpestation (inkl. evt. hydrofor)/trykforøger, Konstruktioner | C14: 2013 | D14: 50 | E14: 233351 | F14: 4667.02 | G14: kr.
B15: Pumpestation (inkl. evt. hydrofor)/trykforøger, SRO | C15: 2013 | D15: 10 | E15: 94923 | F15: 9492.3 | G15: kr.
B16: Pumpestation (inkl. evt. hydrofor)/trykforøger, Mek./EL | C16: 2013 | D16: 25 | E16: 41528 | F16: 1661.12 | G16: kr.
B17: Ø 250 mm < Ledningsnet = Ø 500mm | C17: 2013 | D17: 75 | E17: 42051 | F17: 560.68 | G17: kr.
B18: Ø110 mm < Ledningsnet = Ø 250 mm | C18: 2013 | D18: 75 | E18: 218021 | F18: 2906.946667 | G18: kr.
B19: Ø 50mm < Ledningsnet = Ø110 mm | C19: 2013 | D19: 75 | E19: 562686 | F19: 7502.48 | G19: kr.
B20: Stik på ledningsnet, Konstruktioner | C20: 2013 | D20: 75 | E20: 634518 | F20: 8460.24 | G20: kr.
B21: Stik på ledningsnet, Konstruktioner | C21: 2013 | D21: 75 | E21: 930815 | F21: 12410.86667 | G21: kr.
B22: Ø110 mm < Ledningsnet = Ø 250 mm | C22: 2013 | D22: 75 | E22: 930815 | F22: 12410.86667 | G22: kr.
B23: Ø 50mm < Ledningsnet = Ø110 mm | C23: 2013 | D23: 75 | E23: 172840 | F23: 2304.533333 | G23: kr.
B24: Elanlæg - vandværk | C24: 2013 | D24: 25 | E24: 50000 | F24: 2000 | G24: kr.
B25: SRO-anlæg, vandværk | C25: 2013 | D25: 10 | E25: 186484 | F25: 18648.4 | G25: kr.
B26: Råvandsstation komplet montering og boringshus/tørbrønd | C26: 2013 | D26: 30 | E26: 703499 | F26: 23449.96667 | G26: kr.
B27: Boring (inkl. etablering, forerør, filter og prøvepumpning) | C27: 2013 | D27: 30 | E27: 337572 | F27: 11252.4 | G27: kr.
B28: Stik på ledningsnet, Konstruktioner | C28: 2013 | D28: 75 | E28: 499458 | F28: 6659.44 | G28: kr.
B29: Afregningsmålere, elektroniske = Ø 110mm (Qn 10) | C29: 2013 | D29: 10 | E29: 6168525 | F29: 616852.5 | G29: kr.
B30: Ø 50mm < Ledningsnet = Ø110 mm | C30: 2013 | D30: 75 | E30: 685351 | F30: 9138.013333 | G30: kr.
B31: Tillæg for 2013 | F31: =SUM(F8:F30) -> 837787.24 | G31: kr.
B32: Tillæg for 2010 - 2012 | F32: 4188773.418 | G32: kr.
B33: Samlet tillæg for gennemførte investeringer | F33: =F31+F32 -> 5026560.658 | G33: kr.

Sheet 6. Korrektion investeringer
A1: ='5. Gennemførte investeringer'!A1 -> Vestforsyning Vand A/S
B4: Fane 6. Korrektion af tillæg for planlagte investeringer
B6: Korrektion af tillæg for planlagte investeringer vedr. 2013
B7: Tillæg for planlagte investeringer i 2013 i prisloft 2013 | C7: 662493 | D7: kr.
B8: Tillæg for planlagte investeringer i 2013 i prisloft 2014 | C8: 667127 | D8: kr.
B9: Selskabets faktiske afskrivninger på gennemførte investeringer i 2013 | C9: ='5. Gennemførte investeringer'!F31 -> 837787.24 | D9: kr.
B10: Korrektion af tillæg for planlagte investeringer vedr. 2013 | C10: =C9-C7+C9-C8 -> 345954.48 | D10: kr.

Sheet 7. Planlagte investeringer
A1: ='6. Korrektion investeringer'!A1 -> Vestforsyning Vand A/S
B4: Fane 7. Planlagte investeringer
B6: Tillæg for planlagte investeringer i 2014 og 2015
B7: Beskrivelse af investeringen | C7: Årstal | D7: Std. levetid (år) | E7: Anskaffelses-pris (kr.) | F7: Afskrivning
B8: Etageareal vandbehandlingsbygning | C8: 2014 | D8: 75 | E8: 500000 | F8: =E8/D8 -> 6666.666667 | G8: kr.
B9: Boring (inkl. etablering, forerør, filter og prøvepumpning) | C9: 2014 | D9: 30 | E9: 600000 | F9: =E9/D9 -> 20000 | G9: kr.
B10: Boring (inkl. etablering, forerør, filter og prøvepumpning) | C10: 2014 | D10: 30 | E10: 200000 | F10: =E10/D10 -> 6666.666667 | G10: kr.
B11: Ø 50mm < Ledningsnet = Ø110 mm | C11: 2014 | D11: 75 | E11: 3060000 | F11: 40800 | G11: kr.
B12: Ø 50mm < Ledningsnet = Ø110 mm | C12: 2014 | D12: 75 | E12: 797000 | F12: 10626.66667 | G12: kr.
B13: Stik på ledningsnet, Konstruktioner | C13: 2014 | D13: 75 | E13: 656000 | F13: 8746.666667 | G13: kr.
B14: Afregningsmålere, elektroniske = Ø 110mm (Qn 10) | C14: 2014 | D14: 10 | E14: 5429000 | F14: 542900 | G14: kr.
B15: Boring (inkl. etablering, forerør, filter og prøvepumpning) | C15: 2015 | D15: 30 | E15: 600000 | F15: 20000 | G15: kr.
B16: Boring (inkl. etablering, forerør, filter og prøvepumpning) | C16: 2015 | D16: 30 | E16: 2200000 | F16: 73333.33333 | G16: kr.
B17: Ø 250 mm < Ledningsnet = Ø 500mm | C17: 2015 | D17: 75 | E17: 2500000 | F17: 33333.33333 | G17: kr.
B18: Ø 50mm < Ledningsnet = Ø110 mm | C18: 2015 | D18: 75 | E18: 3121000 | F18: 41613.33333 | G18: kr.
B19: Ø 50mm < Ledningsnet = Ø110 mm | C19: 2015 | D19: 75 | E19: 797000 | F19: 10626.66667 | G19: kr.
B20: Stik på ledningsnet, Konstruktioner | C20: 2015 | D20: 75 | E20: 656000 | F20: 8746.666667 | G20: kr.
B21: Afregningsmålere, elektroniske = Ø 110mm (Qn 10) | C21: 2015 | D21: 10 | E21: 872000 | F21: 87200 | G21: kr.
B22: Tillæg for 2014 | F22: =SUMIF(C8:C21,"2014",F8:F21) -> 636406.6667 | G22: kr.
B23: Tillæg for 2015 | F23: =SUMIF(C8:C21,"2015",F8:F21) -> 274853.3333 | G23: kr.
B24: Tillæg i alt | F24: =F22+F23 -> 911260 | G24: kr.

Sheet 8. 1-1 omkostninger
A1: ='7. Planlagte investeringer'!A1 -> Vestforsyning Vand A/S
B4: Fane 8. 1:1 omkostninger
B6: Tillæg for budgetterede 1:1 omkostninger i 2015
B7: Betaling til Forsyningssekretariatet | C7: 33000 | D7: kr.
B8: Ejendomsskatter | C8: 64000 | D8: kr.
B9: Tillæg i alt | C9: =SUM(C7:C8) -> 97000 | D9: kr.
B12: Tillæg for afgift for ledningsført vand i 2015
B13: Afgift for ledningsført vand (6,53 kr./m3) | C13: 22068000 | D13: kr.
B14: Tillæg i alt | C14: =SUM(C13:C13) -> 22068000 | D14: kr.
B17: Tillæg for budgetterede nødvendige udgifter til revisorerklæringer samt ordinært medlemskab af DANVA og FVD i 2015
B18: Betaling for ordinært medlemskab af DANVA/FVD | C18: 159936 | D18: kr.
B19: Betaling for revisorerklæringer | C19: 19247 | D19: kr.
B20: Tillæg i alt | C20: =SUM(C18:C19) -> 179183 | D20: kr.
B23: Korrektion af tillæg for faktiske 1:1 omkostninger (inkl. afgift for ledningsført vand, revisorerklæringer og ordinært medlemskab af DANVA/FVD) i 2013
B24: Selskabets faktiske 1:1 omkostninger mv. i 2013, jf. reguleringsregnskabet | C24: 21946111 | D24: kr.
B25: Tillæg for budgetterede 1:1 omkostninger mv. i prisloft 2013 | C25: 22329905 | D25: kr.
B26: Korrektion af tillæg for budgetterede 1:1 omkostninger mv. i 2013 | C26: =C24-C25 -> -383794 | D26: kr.

Sheet 9. Miljø- og servicemål
A1: Vestforsyning Vand A/S
B4: Fane 9. Driftsomkostninger til miljø- og servicemål
B6: Tillæg for budgetterede driftsomkostninger til miljø- og servicemål i 2015
B7: Dokumenteret Drikkevandssikkerhed | C7: 397000 | D7: kr.
B8: Fjernaflæsnin/Overvågning af kunder | C8: 286000 | D8: kr.
B9: Tillæg i alt | C9: =SUM(C7:C8) -> 683000 | D9: kr.
B13: Korrektion af tillæg for faktiske driftsomkostninger til miljø- og servicemål i 2013
B14: Selskabets faktiske driftsomkostninger til miljø- og servicemål i 2013, jf. reguleringsregnskabet | C14: 764296 | D14: kr.
B15: Tillæg for budgetterede driftsomkostninger til miljø- og servicemål i prisloft 2013 | C15: 695000 | D15: kr.
B16: Korrektion af tillæg for budgetterede driftsomkostninger til miljø- og servicemål i 2013 | C16: =C14-C15 -> 69296 | D16: kr.

Sheet 10. Nettofinansielle poster
A1: ='2. Samlet prisloft'!A1 -> Vestforsyning Vand A/S
B4: Fane 10. Nettofinansielle poster
B6: Tillæg for budgetterede nettofinansielle poster i 2015
B7: Budgetterede renteudgifter og gebyrer i 2015 | C7: 3621000 | D7: kr.
B8: Budgetterede renteindtægter i 2015 | C8: 195000 | D8: kr.
B9: Tillæg/fradrag i alt | C9: =C7-C8 -> 3426000 | D9: kr.
B13: Korrektion af tillæg for faktiske nettofinansielle poster i 2013
B14: Selskabets faktiske nettofinansielle poster i 2013, jf. reguleringsregnskabet | C14: -2087987 | D14: kr.
B15: Tillæg for budgetterede nettofinansielle poster i prisloft 2013 | C15: 3690000 | D15: kr.
B16: Korrektion af tillæg for budgetterede nettofinansielle poster i 2013 | C16: =C14-C15 -> -5777987 | D16: kr.

Sheet 11. Over- eller underdækning
A1: ='1. Forside'!A1 -> Vestforsyning Vand A/S
B4: Fane 11. Over- eller underdækning til og med 2010
B6: Tillæg/fradrag for over- eller underdækning til og med 2010
B7: Opgjort over- eller underdækning per 31. december 2010 | C7: 897353 | D7: kr.
B8: Heraf beløb indregnet i prislofterne for 2011 - 2014 | C8: -435141.9841 | D8: kr.
B9: Endnu ikke indregnet over- eller underdækning | C9: =C7-C8 -> 1332494.984 | D9: kr.
B10: Resterende indregningsperiode (fastsat i prisloftet for 2012) | C10: 6 | D10: år
B11: Tillæg/fradrag i alt | C11: =IF(C7=0,0,C9/C10) -> 222082.4974 | D11: kr.

Sheet 12. Kontrol med indtægtsrammen
A1: ='11. Over- eller underdækning'!A1 -> Vestforsyning Vand A/S
B4: Fane 12. Korrektion for overholdelse af indtægtsrammen i prisloftet for 2013
B6: Samlet opgørelse vedrørende overholdelse af indtægtsrammen i prisloftet for 2013
B7: Indtægtsramme i prisloftet for 2013 | E7: 74162508.25 | F7: kr.
B8: Ikke anvendt likviditet vedrørende investeringer i 2013
B9: Tillæg for historiske investeringer | C9: 20800958.23 | D9: kr.
B10: Tillæg for gennemførte investeringer i 2011 | C10: 2938964 | D10: kr.
B11: Korrektion af tillæg for planlagte investeringer i 2011 | C11: 1763187 | D11: kr.
B12: Tillæg for planlagte investeringer i 2012 og 2013 | C12: 1737793 | D12: kr.
B13: Indtægter fra tilslutningsbidrag | C13: 1765000 | D13: kr.
B14: Indtægter fra salg af anlægsaktiver | C14: 0 | D14: kr.
B15: Erstatninger vedr. anlægsaktiver mv. | C15: 0 | D15: kr.
B16: Ekstraordinær effektiviseringsgevinst anvendt til investeringer | C16: 0 | D16: kr.
B17: Udgifter til investeringer | C17: -3772000 | D17: kr.
B18: Ikke anvendt likviditet vedr. investeringer i alt | C18: =SUM(C9:C17) -> 25233902.23 | D18: kr. | E18: =IF(C18<0,0,-C18) -> -25233902.23 | F18: kr.
B19: Ekstraordinære effektiviseringsgevinster anvendt til takstnedsættelse
B20: Ekstraordinær effektiviseringsgevinst anvendt til takstnedsættelse | C20: 0 | D20: kr. | E20: =-C20 -> 0 | F20: kr.
B21: Korrektion af ikke opkrævet tillæg fra 2011 i prisloft 2013
B22: Korrektion af ikke opkrævet tillæg fra 2011 i prisloft 2013 | C22: 0 | D22: kr. | E22: =-C22 -> 0 | F22: kr.
B23: Indtægter fra primære aktiviteter mv.
B24: Indtægter fra kubikmetertakster, faste takster, særbidrag, målergebyrer samt andre takster og gebyrer | C24: 48929000 | D24: kr.
B25: Andre indtægter i prisloftåret, som selskabet har opnået i forbindelse med eller som følge af selskabets primære aktiviteter | C25: 0 | D25: kr.
B26: Indtægter fra primære aktiviteter mv. i alt | C26: =SUM(C24:C25) -> 48929000 | D26: kr. | E26: =-C26 -> -48929000 | F26: kr.
B27: Tillæg/fradrag i prisloftet for 2015 i alt | E27: =E7+E18+E20+E22+E26 -> -393.9837973 | F27: kr.
B31: Oversigt over ekstraordinære effektiviseringsgevinster
C33: 2012 | E33: 2013 | G33: 2014 | I33: 2015 | K33: 2016
B34: Indhentet ekstraordinær effektiviseringsgevinst | C34: 58401 | D34: kr. | E34: 83309 | F34: kr. | H34: kr. | J34: kr. | L34: kr.
B35: Gevinst anvendt til investeringer | C35: 0 | D35: kr. | E35: 0 | F35: kr. | H35: kr. | J35: kr. | L35: kr.
B36: Gevinst anvendt til takstnedsættelse | C36: 0 | D36: kr. | E36: 0 | F36: kr. | H36: kr. | J36: kr. | L36: kr.
B37: Korrektion for effektiviseringsgevinst der ikke er anvendt inden 4 år | C37: 0 | D37: kr. | E37: 0 | F37: kr. | H37: kr. | J37: kr. | K37: =IF(C38>SUM(E35:I36),C38-SUM(E35:I36),0)*-1 -> -58401 | L37: kr.
B38: Resterende gevinst | C38: =C34-C35-C36 -> 58401 | D38: kr. | E38: =C38+E34-E35-E36 -> 141710 | F38: kr. | G38: =E38+G34-G35-G36 -> 141710 | H38: kr. | I38: =G38+I34-I35-I36 -> 141710 | J38: kr. | K38: =I38+K34-K35-K36+K37 -> 83309 | L38: kr.
